[Event "FTX Crypto Cup MCCT 2022"]
[Site "Miami"]
[Date "2022.08.11"]
[Round "1.1"]
[White "Aronian, Levon"]
[Black "Le, Quang Liem"]
[Result "1-0"]
[ECO "A18"]
[WhiteElo "2775"]
[BlackElo "2722"]
[Annotator "TA"]
[PlyCount "87"]
[EventDate "2022.08.10"]
[EventType "tourn"]
[EventCountry "USA"]
[SourceTitle "playchess.com"]
[Source "ChessBase"]
[SourceQuality "1"]
[TimeControl "900+10"]

{[%evp 14,87,24,2,12,0,0,0,0,-2,0,-6,0,0,0,0,0,0,0,0,0,0,0,0,0,0,0,-53,-41,-40,0,-50,-15,-35,-25,-32,17,20,25,32,29,31,28,22,85,87,352,351,588,581,719,380,380,372,362,201,201,198,187,176,180,173,166,90,29967,29968,29967,29969,29968,29969,29970,29971,29970,29971,29969,4133]} 1. c4 {[%emt 0:00:00]} Nf6 {[%emt 0:00:00]} 2. Nc3 {[%emt 0:00:04]} e6 {[%emt 0:00:04]} 3. e4 {[%emt 0:00:21]} d5 {[%emt 0:00:03]} 4. e5 {[%emt 0:00:39]} d4 {[%emt 0:00:05]} 5. exf6 {[%emt 0:00:01]} dxc3 {[%emt 0:00:01]} 6. bxc3 {[%emt 0:00:00]} Qxf6 {[%emt 0:00:01]} 7. d4 {[%emt 0:00:01]} e5 {[%emt 0:00:22]} 8. Nf3 {[%emt 0:00:08]} Nc6 {[%emt 0:00:11] A18: English Opening: Flohr-Mikenas System (1 c4 Nf6 2 Nc3 e6 3 e4).} 9. Bg5 {[%emt 0:00:10]} Qg6 {[%emt 0:00:07] Strongly threatening ...e4.} 10. d5 {[%emt 0:00:01]} Nb8 {[%emt 0:00:04][%cal Bc6b8,Bb8d7,Bd7f6][%mdl 32] The position is equal.} (10... Qe4+ $2 11. Be3 (11. Qe2 Qxe2+ 12. Bxe2 Na5 $16) 11... Ne7 12. Bd3 $16) 11. h4 $132 {[%emt 0:00:04][%mdl 2048] Black must now prevent Bd3. White puts up resistance} h6 {[%emt 0:00:02]} 12. h5 {[%emt 0:00:50]} Qa6 {[%emt 0:00:05] is currently scoring better than 12...Qd6.} ({Don't play} 12... Qe4+ 13. Be3 Qf5 14. Bd3 $16) 13. Be3 {[%emt 0:00:06]} Nd7 {[%emt 0:00:04]} 14. Bd3 {[%emt 0:00:09]} Ba3 {[%emt 0:00:28]} ({Much less strong is} 14... e4 15. Bxe4 Qxc4 16. Bd4 $14) 15. Rb1 {[%emt 0:00:25][%cal Oc4c5]} O-O {[%emt 0:01:13]} 16. O-O {[%emt 0:00:53]} Qd6 {[%emt 0:03:00]} 17. Nh4 {[%emt 0:00:04]} Nf6 {[%emt 0:00:42]} 18. Bf5 $1 {[%emt 0:00:05]} Qa6 {[%emt 0:01:18] [#]} 19. Rb5 $146 {[%emt 0:04:31]} ({Predecessor:} 19. c5 Qc4 20. Bxc8 Raxc8 21. Nf5 Bxc5 22. Rxb7 Bd6 23. Qf3 Qxd5 24. Qxd5 Nxd5 25. Bxa7 Nxc3 26. Ra1 Rfe8 {½-½ (26) Ellis,J (2243)-Lisak,J (2114) ICCF email 2021}) 19... Re8 {[%emt 0:01:05]} 20. Bxc8 {[%emt 0:00:45]} (20. f4 $1 $11) 20... Raxc8 $15 {[%emt 0:00:00]} 21. Nf5 {[%emt 0:00:01]} Bf8 {[%emt 0:01:37]} (21... c6 $5 {[%cal Rc6b5]} 22. Rb3 cxd5 23. cxd5 Bf8 $11) 22. Qf3 {[%emt 0:01:31]} (22. f4 $11) 22... c6 {[%emt 0:03:55]} 23. Rb3 {[%emt 0:00:03][%cal Of5h6]} cxd5 {[%emt 0:00:47]} 24. cxd5 {[%emt 0:00:00][%cal Od5d6]} Qxa2 {[%emt 0:00:01]} (24... e4 $15 {was preferrable.} 25. Qg3 Nxh5) 25. Rfb1 $11 {[%emt 0:00:18][%cal Of5h6]} Rxc3 {[%emt 0:00:04]} 26. Rxb7 {[%emt 0:00:20][%cal Of5h6]} Qxd5 {[%emt 0:00:47] [#]} 27. Nxh6+ $1 {[%emt 0:00:02]} gxh6 {[%emt 0:00:01]} 28. Qxf6 {[%emt 0:00:02]} Bg7 {[%emt 0:00:04] [#]} (28... Rc6 $11 {remains equal.} 29. Qf5 Qe6) 29. Qf5 $1 $16 {[%emt 0:00:09][%mdl 1024] Hoping for Rd7. White has strong compensation. White is more active.} a6 $2 {[%emt 0:00:42][%mdl 8192] [#]} (29... Rc6 $16 {might work better.}) 30. Rd7 $1 $18 {[%emt 0:00:12]} Qc4 {[%emt 0:00:25] [#]} (30... Qe6 {was worth a try.} 31. Qxe6 fxe6) 31. Rb4 $3 {[%emt 0:00:10][%mdl 512]} Qa2 {[%emt 0:00:37]} (31... Qe6 32. Qxe6) 32. Rb6 {[%emt 0:01:24] Against Rc6} Rxe3 {[%emt 0:01:50]} 33. fxe3 {[%emt 0:00:04][%cal Ob6g6] Really sharp!} Rf8 {[%emt 0:00:03]} 34. Rbd6 {[%emt 0:00:33]} (34. e4 $142) 34... Qe2 {[%emt 0:00:08]} 35. Qf3 {[%emt 0:00:21]} Qe1+ {[%emt 0:00:02]} 36. Kh2 {[%emt 0:00:01] Threatens to win with Qg3.} e4 {[%emt 0:00:07]} 37. Qg4 {[%emt 0:00:28] Rd8 is the strong threat.} ({And not} 37. Qxe4 Be5+ 38. Qxe5 Qh4+ 39. Kg1 Qe1+ 40. Kh2 Qh4+ 41. Kg1 Qe1+ 42. Kh2 $11) 37... Qxe3 {[%emt 0:00:14]} 38. Rd8 {[%emt 0:00:09]} (38. Rd5 $18) 38... Qg5 $2 {[%emt 0:00:07][%mdl 8192]} (38... Qc5 $16) 39. Rxf8+ {[%emt 0:00:17] White mates.} Bxf8 {[%emt 0:00:02]} 40. Qxg5+ {[%emt 0:00:08]} hxg5 {[%emt 0:00:00]} 41. Rd8 {[%emt 0:00:14]} e3 {[%emt 0:00:22]} 42. Kg1 {[%emt 0:00:02]} f5 {[%emt 0:00:27]} 43. h6 $1 {[%emt 0:00:03]} f4 {[%emt 0:00:31]} 44. Kf1 {[%emt 0:00:07] Weighted Error Value: White=0.18 (very precise) /Black=0.41} 1-0

[Event "FTX Crypto Cup MCCT 2022"]
[Site "Miami"]
[Date "2022.08.11"]
[Round "1.1"]
[White "Giri, Anish"]
[Black "Carlsen, Magnus"]
[Result "1/2-1/2"]
[ECO "B08"]
[WhiteElo "2760"]
[BlackElo "2864"]
[Annotator "TA"]
[PlyCount "69"]
[EventDate "2022.08.10"]
[EventType "tourn"]
[EventCountry "USA"]
[SourceTitle "playchess.com"]
[Source "ChessBase"]
[SourceQuality "1"]
[TimeControl "900+10"]

{[%evp 12,69,33,27,19,32,33,34,33,41,29,23,48,38,49,44,39,32,23,0,0,0,0,0,0,0,0,0,21,14,15,18,18,18,18,17,15,22,18,8,24,8,4,0,0,0,0,0,0,0,0,0,0,0,0,0,0,0,0,0]} 1. e4 {[%emt 0:00:00]} g6 {[%emt 0:00:00]} 2. d4 {[%emt 0:00:04]} Bg7 {[%emt 0:00:03]} 3. Nf3 {[%emt 0:00:03]} d6 {[%emt 0:00:10][%cal Bd7d6,Bd6d5,Bd5e4][%mdl 32]} 4. Be3 {[%emt 0:00:01]} Nf6 {[%emt 0:00:39]} 5. Nc3 {[%emt 0:00:02]} c6 {[%emt 0:00:44]} 6. Qd2 {[%emt 0:00:03]} O-O {[%emt 0:00:11]} 7. Bh6 {[%emt 0:00:28]} d5 {[%emt 0:00:05] B08: Pirc Defence: Classical System.} 8. Bxg7 {[%emt 0:03:04]} Kxg7 {[%emt 0:00:02]} 9. e5 {[%emt 0:00:11]} Ne4 {[%emt 0:00:04] White is slightly better.} 10. Nxe4 {[%emt 0:00:07]} dxe4 {[%emt 0:00:06]} 11. Ng5 {[%emt 0:00:00]} c5 {[%emt 0:01:28]} 12. d5 {[%emt 0:00:57]} ({Reject} 12. dxc5 Bf5 $11) ({Much worse is} 12. Nxe4 cxd4 13. Bd3 Nc6 $11) 12... Bf5 {[%emt 0:01:48][%cal Bc8f5,Bf5e6,Be6d5,Bd5f3][%mdl 32] [#]} 13. Rg1 $146 {[%emt 0:01:12]} ({Predecessor:} 13. e6 fxe6 14. g4 Bxg4 15. Bh3 e3 16. Qxe3 Qxd5 17. Rg1 Bf5 18. Bxf5 Rxf5 19. Nxe6+ {1-0 (53) Lumley,B (2421)-Carr,T (2412) ICCF email 2019}) 13... h6 {[%emt 0:00:19]} 14. g4 {[%emt 0:00:26]} Be6 {[%emt 0:00:02]} 15. Nxe4 {[%emt 0:04:10]} ({Don't play} 15. dxe6 Qxd2+ 16. Kxd2 hxg5 $15) (15. O-O-O $5 {[%cal Rg5e4]} hxg5 16. dxe6 Qxd2+ 17. Rxd2 $11) 15... Qxd5 {[%emt 0:00:03]} 16. Qxd5 {[%emt 0:00:16]} Bxd5 {[%emt 0:00:02]} 17. Nxc5 {[%emt 0:00:44]} Rc8 $1 {[%emt 0:01:13]} 18. O-O-O {[%emt 0:00:43]} Rxc5 {[%emt 0:00:04]} 19. b4 {[%emt 0:00:02]} Bf3 {[%emt 0:00:03]} 20. bxc5 {[%emt 0:00:46]} Bxd1 {[%emt 0:00:02]} 21. Bg2 {[%emt 0:00:02] Inhibits Bf3.} Nd7 $1 {[%emt 0:00:21] [#] And now ...Be2 would win.} 22. Bxb7 {[%emt 0:00:49]} Bf3 {[%emt 0:00:31]} 23. Bxf3 $11 {[%emt 0:01:02][%mdl 4096] Endgame KRB-KRN} Rc8 {[%emt 0:00:02]} 24. e6 {[%emt 0:00:54]} fxe6 {[%emt 0:00:05]} 25. c6 {[%emt 0:00:30]} Ne5 {[%emt 0:00:02][%csl LRc6,LRf3]} 26. Be4 {[%emt 0:00:02] [#] Black must now prevent g5.} Nxc6 {[%emt 0:00:01] The position is equal.} 27. Bxc6 {[%emt 0:01:29]} Rxc6 {[%emt 0:00:01] KR-KR} 28. Rd1 {[%emt 0:00:00]} Kf6 {[%emt 0:00:13]} 29. Rd7 {[%emt 0:00:03]} Ra6 {[%emt 0:00:28]} 30. Kb2 {[%emt 0:00:02]} Rb6+ {[%emt 0:00:00]} 31. Kc3 {[%emt 0:00:04]} Ra6 {[%emt 0:00:01]} 32. Kb3 {[%emt 0:00:01]} Rb6+ {[%emt 0:00:02]} 33. Kc3 {[%emt 0:00:01]} Ra6 {[%emt 0:00:01]} 34. Kb3 {[%emt 0:00:01]} Rb6+ {[%emt 0:00:02]} 35. Kc3 {[%emt 0:00:01] Weighted Error Value: White=0.02 (flawless) /Black=0.02 (flawless)} 1/2-1/2

[Event "FTX Crypto Cup MCCT 2022"]
[Site "Miami"]
[Date "2022.08.11"]
[Round "1.1"]
[White "Niemann, Hans Moke"]
[Black "Duda, Jan-Krzysztof"]
[Result "0-1"]
[ECO "D78"]
[WhiteElo "2688"]
[BlackElo "2750"]
[Annotator "TA"]
[PlyCount "75"]
[EventDate "2022.08.10"]
[EventType "tourn"]
[EventCountry "USA"]
[SourceTitle "playchess.com"]
[Source "ChessBase"]
[SourceQuality "1"]
[TimeControl "900+10"]

{[%evp 17,75,17,18,0,0,0,0,-16,-19,-24,-17,0,0,0,43,-8,0,-6,-8,0,-15,-8,-27,-36,-10,-7,0,0,0,0,0,0,0,0,0,0,0,0,0,0,0,0,0,0,0,0,0,0,0,0,0,0,0,0,0,0,0,0,0,-15]} 1. d4 {[%emt 0:00:00]} Nf6 {[%emt 0:00:00]} 2. c4 {[%emt 0:00:05]} g6 {[%emt 0:00:05]} 3. g3 {[%emt 0:00:04]} c6 {[%emt 0:00:07]} 4. Bg2 {[%emt 0:00:02]} d5 {[%emt 0:00:01]} 5. Nf3 {[%emt 0:00:01]} Bg7 {[%emt 0:00:01]} 6. b3 {[%emt 0:00:01]} O-O {[%emt 0:00:02]} 7. Bb2 {[%emt 0:00:03]} a5 {[%emt 0:00:16]} 8. Nc3 {[%emt 0:00:54]} Ne4 {[%emt 0:02:51]} 9. O-O {[%emt 0:00:53]} Bf5 {[%emt 0:00:12]} 10. Nh4 {[%emt 0:02:47] D78: Fianchetto Grünfeld: 6 0-0 c6.} Nxc3 {[%emt 0:00:07]} 11. Bxc3 {[%emt 0:00:03]} Be6 {[%emt 0:00:02]} 12. f4 {[%emt 0:01:40][%cal Bf2f4,Bf4f5][%mdl 32] [#]} dxc4 $146 {[%emt 0:01:04]} ({Predecessor:} 12... Nd7 13. cxd5 cxd5 14. Qd3 Nf6 15. f5 Bd7 16. Rae1 Qb6 17. Ba1 Rac8 18. h3 Bh6 {0-1 (34) Gunina,V (2451)-Goryachkina,A (2593) Moscow 2020}) 13. f5 {[%emt 0:00:08][%mdl 64] [#] Deflection} Bc8 {[%emt 0:00:01]} 14. Qd2 {[%emt 0:03:26]} cxb3 {[%emt 0:01:12]} 15. axb3 {[%emt 0:00:03]} b6 {[%emt 0:02:52]} 16. e4 {[%emt 0:00:41]} ({White should try} 16. d5 $14) 16... e5 $11 {[%emt 0:00:31][%cal Re5d4]} 17. fxe6 {[%emt 0:02:19]} Bxe6 {[%emt 0:00:15]} 18. d5 {[%emt 0:00:05]} Bxc3 {[%emt 0:01:33]} 19. Qxc3 {[%emt 0:00:03]} cxd5 {[%emt 0:00:00]} 20. exd5 {[%emt 0:00:03]} Bc8 {[%emt 0:00:01]} (20... Bxd5 $2 21. Rad1 Qc8 22. Qxc8 Rxc8 23. Bxd5 $18) 21. Nf3 {[%emt 0:00:41][%cal Bh4f3,Bf3d4,Bd4c6][%mdl 32] The position is equal.} Ba6 {[%emt 0:01:01]} 22. Rf2 {[%emt 0:00:59][%cal Od5d6]} Nd7 {[%emt 0:03:21]} 23. Nd4 {[%emt 0:00:02] [#] And now Nc6 would win.} Qe7 {[%emt 0:00:01]} 24. d6 {[%emt 0:01:12]} Qxd6 {[%emt 0:00:04]} 25. Bxa8 {[%emt 0:00:14]} Rxa8 {[%emt 0:00:00]} 26. Qc6 {[%emt 0:00:41]} Qxc6 {[%emt 0:00:29]} 27. Nxc6 {[%emt 0:00:00]} Bb7 {[%emt 0:00:06]} 28. Nd4 {[%emt 0:00:39]} Rd8 {[%emt 0:00:06][%cal Ba8d8,Bd8d7,Bd7e7][%mdl 32]} 29. Rd1 {[%emt 0:00:40]} Nc5 {[%emt 0:00:22] ...Nxb3 is the strong threat.} 30. Rfd2 {[%emt 0:00:11]} Ne4 {[%emt 0:00:38]} 31. Rc2 {[%emt 0:00:20]} Rd7 {[%emt 0:00:17]} 32. Rcc1 {[%emt 0:00:05]} Ng5 {[%emt 0:00:24][%cal Od7d4] Hoping for ...Rxd4!} 33. Kf2 {[%emt 0:00:08]} Re7 {[%emt 0:00:26]} 34. Re1 {[%emt 0:00:39]} Ne4+ {[%emt 0:00:03]} 35. Kg1 {[%emt 0:00:04]} Rd7 {[%emt 0:01:37]} 36. Red1 {[%emt 0:00:02]} Nc5 {[%emt 0:00:06]} 37. Nb5 {[%emt 0:00:02]} Re7 {[%emt 0:01:06]} 38. Re1 {[%emt 0:00:09][%mdl 32768] Prevents Re2. A balanced but interesting game.  Weighted Error Value: White=0.05 (flawless) /Black=0.03 (flawless) . Loss on time!?} 0-1

[Event "FTX Crypto Cup MCCT 2022"]
[Site "Miami"]
[Date "2022.08.11"]
[Round "1.1"]
[White "Praggnanandhaa R"]
[Black "Firouzja, Alireza"]
[Result "1-0"]
[ECO "C67"]
[WhiteElo "2648"]
[BlackElo "2793"]
[Annotator "TA"]
[PlyCount "87"]
[EventDate "2022.08.10"]
[EventType "tourn"]
[EventCountry "USA"]
[SourceTitle "playchess.com"]
[Source "ChessBase"]
[SourceQuality "1"]
[TimeControl "900+10"]

{[%evp 15,87,8,24,4,12,12,19,16,15,11,16,10,16,13,29,26,25,25,25,25,25,22,32,25,33,36,40,38,97,96,137,126,145,132,176,180,172,181,185,194,176,186,207,154,193,173,213,216,249,241,302,302,468,483,797,793,960,548,548,514,501,369,375,359,524,523,547,564,710,698,956,1138,1491,1382]} 1. e4 {[%emt 0:00:00]} e5 {[%emt 0:00:00]} 2. Nf3 {[%emt 0:00:02]} Nc6 {[%emt 0:00:03]} 3. Bb5 {[%emt 0:00:01]} Nf6 {[%emt 0:00:03]} 4. O-O {[%emt 0:00:02]} Nxe4 {[%emt 0:00:01]} 5. Re1 {[%emt 0:00:01]} Nd6 {[%emt 0:00:01]} 6. Nxe5 {[%emt 0:00:01]} Be7 {[%emt 0:00:02]} 7. Bf1 {[%emt 0:00:02]} Nxe5 {[%emt 0:00:04]} 8. Rxe5 {[%emt 0:00:01]} O-O {[%emt 0:00:01]} 9. Nc3 {[%emt 0:00:09] C67: Ruy Lopez: Berlin Defence: 4 0-0 Nxe4.} Ne8 {[%emt 0:00:08]} 10. Nd5 {[%emt 0:00:13][%cal Bc3d5,Bd5e3,Be3f5][%mdl 32]} Bd6 {[%emt 0:00:01]} 11. Re1 {[%emt 0:00:01] The position is equal.} c6 {[%emt 0:00:02]} (11... Qh4 12. g3 Qd8 13. Ne3 $16) 12. Ne3 {[%emt 0:00:01]} Be7 {[%emt 0:00:04]} (12... Qh4 13. g3 Qf6 14. d4 $16) 13. Nf5 {[%emt 0:00:26]} Bg5 {[%emt 0:00:05]} 14. d3 {[%emt 0:00:04]} d5 {[%emt 0:00:13] [#]} 15. Bxg5 $146 {[%emt 0:00:30]} ({Predecessor:} 15. Qf3 Bxf5 16. Qxf5 Bxc1 17. Raxc1 Nf6 18. c4 Qb6 19. b3 Rfe8 20. g3 Qa5 21. Rxe8+ Rxe8 22. cxd5 Qxd5 23. Qxd5 Nxd5 {1-0 (63) Caruana,F (2781)-Santos Ruiz,M (2597) Chess.com INT 2022}) 15... Qxg5 {[%emt 0:00:02]} 16. Ne7+ {[%emt 0:00:02]} Kh8 {[%emt 0:00:01] Strongly threatening ...Be6.} 17. Nxc8 {[%emt 0:00:30]} Rxc8 {[%emt 0:00:02]} 18. c4 {[%emt 0:00:06]} Nf6 {[%emt 0:01:09]} 19. Qb3 $36 {[%emt 0:02:08][%mdl 2048] White has some pressure.} Qf4 {[%emt 0:02:11] ( -> ...Ng4)} 20. g3 {[%emt 0:01:52]} Qc7 {[%emt 0:03:04]} 21. Qa3 {[%emt 0:00:34]} c5 {[%emt 0:00:30]} (21... Qb8 $14) 22. cxd5 $16 {[%emt 0:02:32] White now steadily converts the win.} (22. Qxa7 $2 Ra8 23. Qxa8 Rxa8 $19) 22... Nxd5 {[%emt 0:00:41]} 23. Rac1 {[%emt 0:00:46]} ({But not} 23. Qxa7 $2 Ra8 24. Qxa8 Rxa8 $19) 23... Qb6 {[%emt 0:03:41] [#]} 24. Re5 $1 {[%emt 0:00:28][%cal Be1e5,Be5c5,Bc5c7][%mdl 32]} Nb4 {[%emt 0:00:15] [#]} 25. d4 $1 {[%emt 0:00:43][%cal Re5c5,Bd3d4,Bd4d5][%mdl 32]} Nc6 {[%emt 0:04:05]} (25... cxd4 $2 26. Rb5 Rxc1 27. Rxb6 axb6 28. Qxb4 $18) 26. Rexc5 {[%emt 0:01:35]} Rcd8 {[%emt 0:00:07]} 27. d5 {[%emt 0:01:02]} Ne5 {[%emt 0:00:01]} 28. Qc3 {[%emt 0:01:51]} Rfe8 {[%emt 0:00:03]} 29. h3 {[%emt 0:00:51]} Qd6 {[%emt 0:00:22]} 30. Bg2 {[%emt 0:00:11]} h5 {[%emt 0:00:28]} 31. Rc7 {[%emt 0:00:22]} Rb8 {[%emt 0:01:40]} 32. Qa3 {[%emt 0:00:45]} Qb6 {[%emt 0:00:25]} 33. d6 {[%emt 0:00:53]} Qd4 {[%emt 0:00:27]} (33... h4 $142 34. d7 Red8) 34. Qc5 $18 {[%emt 0:00:05]} Qxb2 {[%emt 0:00:12]} (34... Qxc5 $142 35. R1xc5 Rbd8) 35. f4 {[%emt 0:00:50]} Ng6 {[%emt 0:00:27]} 36. Qxh5+ {[%emt 0:00:03]} Kg8 {[%emt 0:00:01]} 37. Bd5 {[%emt 0:00:25]} Rf8 {[%emt 0:00:26]} 38. Kh1 {[%emt 0:00:28] Qxg6 is the strong threat.} Qf6 {[%emt 0:00:04]} 39. d7 {[%emt 0:00:15]} Qd6 {[%emt 0:00:15]} (39... Rfd8 $142 40. Re1 (40. Bxb7 Qe7 $16) 40... Ne7) 40. Be4 {[%emt 0:00:14] Threatens to win with Bxg6. White is clearly winning.} Rbd8 {[%emt 0:00:07]} 41. Qf5 {[%emt 0:00:05]} Qa3 {[%emt 0:00:09]} 42. Kh2 {[%emt 0:00:16]} Qxa2+ {[%emt 0:00:02]} 43. R1c2 {[%emt 0:00:01] Active counter play!} Qa4 {[%emt 0:00:33]} 44. h4 {[%emt 0:00:06] Weighted Error Value: White=0.17 (very precise) /Black=0.30} 1-0

[Event "FTX Crypto Cup MCCT 2022"]
[Site "Miami"]
[Date "2022.08.11"]
[Round "1.2"]
[White "Carlsen, Magnus"]
[Black "Giri, Anish"]
[Result "1/2-1/2"]
[ECO "B90"]
[WhiteElo "2864"]
[BlackElo "2760"]
[Annotator "TA"]
[PlyCount "66"]
[EventDate "2022.08.10"]
[EventType "tourn"]
[EventCountry "USA"]
[SourceTitle "playchess.com"]
[Source "ChessBase"]
[SourceQuality "1"]
[TimeControl "900+10"]

{[%evp 10,66,31,-21,16,22,25,10,11,0,7,0,0,0,0,0,17,-13,-4,-42,-71,-77,0,0,0,0,0,0,0,0,0,-137,-108,-104,-105,-227,-234,-234,-228,-239,-239,-214,-239,-235,-225,-247,-236,-239,-237,-231,-92,-93,-80,-90,0,0,0,-41,0]} 1. e4 {[%emt 0:00:00]} c5 {[%emt 0:00:00]} 2. Nf3 {[%emt 0:00:02]} d6 {[%emt 0:00:01]} 3. d4 {[%emt 0:00:01]} cxd4 {[%emt 0:00:01]} 4. Nxd4 {[%emt 0:00:02]} Nf6 {[%emt 0:00:01]} 5. Nc3 {[%emt 0:00:03]} a6 {[%emt 0:00:01]} 6. Rg1 {[%emt 0:00:01]} ({White should try} 6. Be3 $14) 6... h5 {[%emt 0:00:02] B90: Sicilian Najdorf: Unusual White 6th moves, 6 Be3 Ng4 and 6 Be3 e5.} 7. Bg5 {[%emt 0:00:25]} b5 {[%emt 0:00:05]} 8. a3 {[%emt 0:00:12] [#]} Bb7 $146 {[%emt 0:00:27] The position is equal.} ({Predecessor:} 8... Nbd7 9. Qd2 g6 10. Be2 Bb7 11. O-O-O Bg7 12. f4 Qc7 13. Bf3 Nb6 14. f5 Nc4 {½-½ (45) Finocchiaro,F (2570)-Prozorovsky,V (2452) ICCF email 2020}) 9. Bxf6 {[%emt 0:02:22]} gxf6 {[%emt 0:00:02]} 10. f4 {[%emt 0:02:31]} Nc6 {[%emt 0:00:41]} 11. Nxc6 {[%emt 0:00:19]} Bxc6 {[%emt 0:00:01]} 12. Qd4 {[%emt 0:00:02] Prevents Qb6.} e6 {[%emt 0:02:46]} 13. O-O-O {[%emt 0:00:57]} Rb8 {[%emt 0:00:07]} 14. Nd5 {[%emt 0:02:47]} exd5 {[%emt 0:03:16]} 15. exd5 {[%emt 0:00:02]} Bb7 {[%emt 0:02:49]} (15... Ba8 $1 $17 {Hoping for ...Bg7.} 16. Re1+ Kd7) 16. Re1+ $1 $11 {[%emt 0:00:04]} Be7 {[%emt 0:00:17]} 17. Bd3 {[%emt 0:04:19] Strongly threatening Re3.} Kf8 {[%emt 0:00:32] White must now prevent ...Qc7.} 18. g4 $1 {[%emt 0:00:02]} hxg4 {[%emt 0:01:04]} 19. f5 {[%emt 0:00:15]} Rg8 {[%emt 0:01:08]} 20. Rxg4 {[%emt 0:01:32]} (20. Rg3 $1 $11 {was the only way to keep the balance.}) 20... Rxg4 $17 {[%emt 0:00:39]} 21. Qxg4 {[%emt 0:00:00]} Bxd5 {[%emt 0:00:39]} 22. Qd4 {[%emt 0:00:02]} (22. h4 $17 {might work better.}) 22... Bc4 $19 {[%emt 0:00:37]} 23. Bxc4 {[%emt 0:00:24]} (23. Qh4 Ke8 24. Bxc4 bxc4) 23... bxc4 {[%emt 0:00:02]} 24. Qxc4 {[%emt 0:01:11]} ({Don't play} 24. Qh4 Ke8 25. Qxc4 Rb5) 24... Qb6 {[%emt 0:01:57]} 25. b4 {[%emt 0:00:09]} d5 {[%emt 0:01:17]} 26. Qh4 {[%emt 0:00:58][%cal Rh4h8]} Ke8 {[%emt 0:00:05] And now ...Kd7 would win.} 27. Qh7 {[%emt 0:00:01]} Qd6 {[%emt 0:00:21][%cal Oa6a5] Threatens to win with ...a5!} 28. Qg8+ {[%emt 0:00:02]} Kd7 {[%emt 0:00:02]} 29. Qxf7 {[%emt 0:00:00]} Qf4+ {[%emt 0:00:11]} (29... Rf8 $1 $19 {[%cal Rf8f7] has better winning chances.} 30. Qg7 a5) 30. Kd1 $17 {[%emt 0:00:03] [#]} Qd4+ $1 {[%emt 0:00:19]} ({Much weaker is} 30... Qf3+ $6 31. Re2 Re8 32. Qe6+ Kc7 33. Qxa6 $11) 31. Kc1 {[%emt 0:00:04] [#]} Qf4+ {[%emt 0:00:11]} (31... Re8 $1 $17 {[%cal Oa6a5]} 32. Qe6+ (32. Kb1 a5 $17) 32... Kc7) 32. Kd1 $11 {[%emt 0:00:04]} Qd4+ {[%emt 0:00:23]} 33. Kc1 {[%emt 0:00:02] Chess con chili.} Qf4+ {[%emt 0:00:14] Weighted Error Value: White=0.16 (very precise) /Black=0.16 (very precise)} 1/2-1/2